{"text_format":"1","workbook":"xlsx","n_sheets":34,"sheets":["Wstęp","Zawartość","Instrukcja","S.A.T.","Informacje ogólne","art.2 (4)(a)","art.2 (4)(b)","art.2 (4)(c)","art.2 (4)(d)","art.2 (4)(e)","art.2 (4)(f)","art.2 (4)(g)","art.2 (4)(h)","art.2 (4)(i)","art.2 (4)(j)","art.2 (4)(k)","art.2 (4)(l)","art.2 (4)(m)","art.2 (4)(n)","art.2 (4)(o)","art.2 (4)(p)","art.2 (4)(q)","art.2 (4)(r)","343 (5)(a)(i) + 347 (6)(a)","343 (5)(a)(ii) + 347 (6)(a)","343 (5)(a)(iii) + 347 (6)(a)","343 (5)(a)(iv) + 347 (6)(a)","343 (5)(b)(i) + 347 (6)(a)","343 (5)(b)(ii) + 347 (6)(a)","343 (5)(b)(iii) + 347 (6)(a)","343 (5)(b)(iv) + 347 (6)(a)","347 (6)(a) zd. 2","347 (6)(b)","Informacje dodatkowe"],"not_rendered":{"charts":0,"images":1,"macros":1,"external_links":0,"defined_names":1,"comments":1,"pivot_tables":0},"unopened":[],"bounds":{"document_bytes":16777216,"sheet_cells":100000,"rows_first":2000,"rows_last":500,"rows_between":2000,"halvings":0,"cell_chars":16384,"cell_head_chars":4096},"cells_cut":0,"cells_raw":0,"read":"whole","date_system":"1900"}

{"sheet":"Wstęp","index":0,"n_rows":20,"n_cols":4,"rows_kept":20,"cut":false,"hidden":false,"merged":[[0,1,5,8],[6,1,6,8],[9,3,9,8],[15,1,15,2],[19,1,19,2],[13,1,13,2],[13,3,13,8],[11,3,11,8],[17,3,17,8]]}
[]
[]
[]
[]
[]
[]
[null,"Formularz na potrzeby wniosku o stosowanie modelu wewnętrznego"]
[]
[]
[null,"Organ nadzorczy:",null,"Komisja Nadzoru Finansowego"]
[]
[null,"Nazwa zakładu: "]
[]
[null,"Numer KRS:"]
[]
[null,"Zakres wniosku:"]
[]
[null,"Data doręczenia: "]
[]
[null,"Rodzaj wniosku:"]

{"sheet":"Zawartość","index":1,"n_rows":68,"n_cols":3,"rows_kept":68,"cut":false,"hidden":false,"merged":[]}
[]
[]
[]
[]
[]
[]
[null,"Zawartość"]
[]
[null,"Arkusz","Opis"]
[]
[null,"Instrukcja","Informacja o sposobie wypełnienia arkusza"]
[]
[null,"Arkusz oceny własnej (S.A.T.):","Wykaz wymogów dotyczących modeli wewnętrznych"]
[]
[null,"SAT Testy i standardy","Wymogi dotyczące testów i standardów"]
[null,"SAT Wymogi ogólne","Wymogi ogólne"]
[null,"SAT Wymogi dla grup (artykuł 391)","Dodatkowe wymogi dla grup (art. 391)"]
[null,"SAT Wymogi dla grup (artykuł 390)","Dodatkowe wymogi dla grup (art. 390)"]
[]
[null,"Arkusz Informacje ogólne:","Informacje ogólne, inne niż dotyczące modeli wewnętrznych"]
[]
[null,"Informacje ogólne","Informacje ogólne, inne niż dotyczące modeli wewnętrznych"]
[]
[]
[null,"Wniosek: ","Rozporządzenie wykonawcze 2015/460 (Artykuł 2)"]
[]
[null,"Artykuł 2 (4)(a)",{"$f":"'art.2 (4)(a)'!G3","v":"List przewodni"}]
[null,"Artykuł 2 (4)(b)",{"$f":"'art.2 (4)(b)'!G3","v":"Uwzględnione ryzyka"}]
[null,"Artykuł 2 (4)(c)","Integracja  modelu wewnętrznego z systemem zarządzania ryzykiem"]
[null,"Artykuł 2 (4)(d)","Ocena i uzasadnienie istotnych mocnych i słabych punktów oraz ograniczeń modelu wewnętrznego"]
[null,"Artykuł 2 (4)(e)","Uzasadnienie określające, dlaczego model wewnętrzny grupy nie odpowiada profilowi ryzyka zakładu"]
[null,"Artykuł 2 (4)(f)","Specyfikacja techniczna modelu wewnętrznego"]
[null,"Artykuł 2 (4)(g)","Adekwatność systemu kontroli wewnętrznej"]
[null,"Artykuł 2 (4)(h)","Adekwatność zasobów, umiejętności i obiektywności personelu odpowiedzialnego za opracowanie i walidację modelu wewnętrznego"]
[null,"Artykuł 2 (4)(i)","Zasady wprowadzania zmian w modelu wewnętrznym"]
[null,"Artykuł 2 (4)(j)","Zgodność metod stosowanych do wyznaczania prognozy rozkładu prawdopodobieństwa z metodami stosowanymi do ustalania wartości rezerw techniczno- ubezpieczeniowych"]
[null,"Artykuł 2 (4)(k)","Wykaz danych stosowanych w modelu wewnętrznym"]
[null,"Artykuł 2 (4)(l)","Wyniki ostatniego przypisania zysków i strat"]
[null,"Artykuł 2 (4)(m)","Niezależny proces walidacji modelu wewnętrznego oraz sprawozdanie z wyników ostatniej walidacji"]
[null,"Artykuł 2 (4)(n)","Wykaz dokumentów, które wchodzą w skład dokumentacji modelu wewnętrznego"]
[null,"Artykuł 2 (4)(o)","Stosowanie modeli lub danych zewnętrznych"]
[null,"Artykuł 2 (4)(p)","Oszacowanie kapitałowego wymogu wypłacalności za pomocą modelu wewnętrznego oraz za pomocą formuły standardowej"]
[null,"Artykuł 2 (4)(q)","Główne obszary działalności"]
[null,"Artykuł 2 (4)(r)","Integracja częściowych modeli wewnętrznych"]
[]
[]
[null,"Wniosek","Wniosek dot. modelu grupy"]
[]
[null,"Rozporządzenie delegowane 2015/35:","Wniosek dot. modelu grupy (artykuł 390 i artykuł 391)"]
[]
[null,"343 (5)(a)(i) + 347 (6)(a)","Wykaz jednostek powiązanych, które są objęte zakresem modelu"]
[null,"343 (5)(a)(ii) + 347 (6)(a)","Prawna i organizacyjna struktura grupy z opisem wszystkich jednostek zależnych"]
[null,"343 (5)(a)(iii) + 347 (6)(a)","Wykaz jednostek powiązanych wyłączonych z zakresu częściowego modelu wewnętrznego wraz z opisem metod oceny ryzyka w tych wyłączonych jednostkach powiązanych"]
[null,"343 (5)(a)(iv) + 347 (6)(a)","Uzasadnienie powodów"]
[null,"343 (5)(b)(i) + 347 (6)(a)","Oszacowanie skonsolidowanego kapitałowego wymogu wypłacalności grupy obliczonego z wykorzystaniem modelu wewnętrznego oraz z wykorzystaniem formuły standardowej"]
[null,"343 (5)(b)(ii) + 347 (6)(a)","Kapitałowy wymóg wypłacalności każdej jednostki powiązanej obliczony z wykorzystaniem formuły standardowej za ostatni okres poprzedzający złożenie wniosku"]
[null,"343 (5)(b)(iii) + 347 (6)(a)","Regulacyjny wymóg kapitałowy obowiązujący jednostki powiązane, które są jednostkami regulowanymi innymi niż zakłady ubezpieczeń i zakłady reasekuracji (jeśli zasadne)"]
[null,"343 (5)(b)(iv) + 347 (6)(a)","Wyjaśnienie różnicy dotyczącej kapitałowego wymogu wypłacalności"]
[]
[null,null,"Wniosek dot. modelu grupy (tylko artykuł 391)"]
[]
[null,"347 (6)(a) zd.2","Wykaz wszystkich zakładów ubezpieczeń i zakładów reasekuracji składających wniosek o zezwolenie na stosowanie modelu wewnętrznego grupy do wyznaczania indywidualnego kapitałowego wymogu wypłacalności"]
[null,"347 (6)(b)","Dokumenty inne niż złożone zgodnie z artykułem 2 rozporządzenia wykonawczego 2015/460"]
[]
[]
[null,"Informacje dodatkowe:"]
[]
[null,"Informacje dodatkowe","Informacje dodatkowe, które zakład uznaje za stosowne z punktu widzenia dopełnienia kompletności wniosku"]

{"sheet":"Instrukcja","index":2,"n_rows":51,"n_cols":4,"rows_kept":51,"cut":false,"hidden":false,"merged":[[13,2,13,3],[15,2,15,3],[11,1,11,2],[14,2,14,3],[8,1,8,3],[50,2,50,3],[44,1,44,3],[46,2,46,3],[47,2,47,3],[48,2,48,3],[49,2,49,3],[45,2,45,3],[27,1,27,3],[29,2,29,3],[35,2,35,3],[37,1,37,3],[39,2,39,3],[30,2,30,3],[9,1,9,3],[10,1,10,3]]}
[]
[]
[]
[]
[]
[]
[null,"Instrukcja"]
[]
[null,"Niniejszy formularz został sporządzony na podstawie formularza „EIOPA Common Application Package for Internal Models” dostępnego na stronie internetowej EIOPA w lokalizacji:  https://eiopa.europa.eu/publications/standards-guidelines-and-recommendations, dostosowanego do potrzeb sprawowania nadzoru przez Komisję Nadzoru Finansowego."]
[null,"Wypełnienie arkuszy zawartych w niniejszym formularzu jest niezbędne do prawidłowej oceny wniosku o stosowanie modelu wewnętrznego do wyznaczania kapitałowego wymogu wypłacalności, składanego do Komisji Nadzoru Finansowego. Wypełniony formularz powinien zostać przekazany wraz z innymi dokumentami, które potwierdzają, że model wewnętrzny spełnia wymogi ustawy z dnia 11 września 2015 r. o działalności ubezpieczeniowej i reasekuracyjnej (Dz. U. z 2015 r., poz. 1844; dalej: Ustawa) i innych przepisów systemu Wypłacalność II. Formularz zawiera arkusz oceny własnej (S.A.T.), arkusz informacji dodatkowych, oraz arkusze szczegółowe, w których należy wskazać dokumenty wchodzące w skład wniosku wraz z przyporządkowaniem do poszczególnych wymogów, których te dokumenty dotyczą."]
[null,"Dalsza część instrukcji (poniżej) zawiera informacje, które mogą okazać się pomocne do prawidłowego wypełnienia arkuszy. Pomimo dołożenia wszelkich starań do zapewnienia poprawności i kompletności przedstawionych informacji, w razie jakichkolwiek pytań lub wątpliwości dotyczących któregokolwiek arkusza, należy skontaktować się z Departamentem Inspekcji Ubezpieczeniowych i Emerytalnych Urzędu Komisji Nadzoru Finansowego, właściwym w sprawie procesów przedaplikacyjnych i aplikacyjnych modeli wewnętrznych."]
[null,"Arkusze szczegółowe: "]
[]
[null,null,"W arkuszach szczegółowych (od arkusza „art. 2 (4) (a)” do końca) należy przedstawić listę dokumentów, które potwierdzają, że model wewnętrzny spełnia konkretne wymogi Ustawy i innych przepisów systemu Wypłacalność II. Każdemu dokumentowi należy przypisać niepowtarzalny kod referencyjny. Nie oczekuje się uzasadnień w arkuszach szczegółowych, mając na uwadze, że uzasadnienie dla spełnienia poszczególnych wymogów będzie zawarte w arkuszu oceny własnej (Arkusz S.A.T.). Wypełnienie arkuszy szczegółowych ma charakter porządkujący, a arkusze szczegółowe będą traktowane jako rejestr dokumentów."]
[null,null,"Bez względu na zakres wniosku o stosowanie modelu (tj. Model lokalny, Model grupowy i lokalny, Model grupowy), należy wypełnić wszystkie arkusze szczegółowe odwołujące się do artykułu 2 rozporządzenia wykonawczego 2015/460. Arkusze szczegółowe odwołujące się do przepisów  rozporządzenia delegowanego 2015/35 (od arkusza „343(5)(a)(i)+347(6)(a)” do arkusza „343(5)(b)(iv)+347(6)(a)”) powinny być wypełnione jeśli wniosek dotyczy stosowania modelu wewnętrznego do wyznaczania kapitałowego wymogu wypłacalności grupy. Ponadto, w przypadku gdy model wewnętrzny grupy ma być stosowany do wyznaczania indywidualnego kapitałowego wymogu wypłacalności co najmniej jednego podmiotu powiązanego, należy wypełnić arkusz „347(6)(a) zd. 2” oraz warunkowo, jeśli dokumenty dotyczące poszczególnych podmiotów powiązanych nie zostały opisane w innych arkuszach szczegółowych, także arkusz „347(6)(b)”."]
[null,null,"W każdym arkuszu szczegółowym, należy wypełnić wszystkie kolumny (z zastrzeżeniem odnośnie do kolumny „Uwagi dodatkowe”) udostępnione do wypełnienia w zależności od rodzaju wniosku (Wniosek aplikacyjny, Proces przedaplikacyjny), wskazując:"]
[null,1,"Niepowtarzalny kod referencyjny ","Niepowtarzalny kod referencyjny przypisany przez wnioskodawcę do każdego dokumentu potwierdzającego spełnienie wymogu. Jeśli jeden dokument stanowi potwierdzenie spełnienia więcej niż jednego wymogu, należy użyć tego samego niepowtarzalnego kodu referencyjnego w różnych arkuszach szczegółowych. Niepowtarzalny kod referencyjny powinien składać się z 3-4 liter, zgodnie z oznaczeniem przypisanym we właściwych komórkach poszczególnych arkuszy szczegółowych (np. LET dla dokumentów dotyczących listu przewodniego). Jeśli na potwierdzenie spełnienia poszczególnych wymogów miałby być dostarczony więcej niż jeden dokument, ww. oznaczenia literowe powinny zostać rozbudowane o numer dokumentu (np. LET01, LET02, itd.)."]
[null,{"$f":"+B17+1","v":2},"Data wersji dokumentu","Data sporządzenia poszczególnych dokumentów (oznaczonych niepowtarzalnym kodem referencyjnym) wchodzących w skład wniosku."]
[null,3,"Opis dokumentu ","Nazwa i typ dokumentu (raport, protokół z posiedzenia komitetu, tabela, schemat organizacyjny, arkusz kalkulacyjny, prezentacja, itp.). Nie jest konieczny szczegółowy opis poszczególnych dokumentów, przy czym jeśli tylko część danego dokumentu stanowi potwierdzenie spełnienia wymogu, należy szczegółowo określić umiejscowienie takiego potwierdzenia w dokumencie, poprzez wskazanie konkretnych numerów rozdziałów, podrozdziałów lub stron."]
[null,4,"Status","Status dokumentu dotyczy tylko procesów przedaplikacyjnych i oznacza stopień gotowości poszczególnych dokumentów. Z listy rozwijanej należy wybrać wartość od 1 do 4, gdzie 1 oznacza, że prace nad dokumentem jeszcze się nie rozpoczęły, 2 oznacza, że prace nad dokumentem wprawdzie się rozpoczęły, ale wciąż wiele pozostaje do zrobienia, 3 oznacza, że prace nad dokumentem są bliskie ukończenia, a 4, że dokument został ukończony i podpisany. W przypadku wniosków aplikacyjnych wszystkie dokumenty składane w ramach wniosków powinny być ukończone i podpisane."]
[null,5,"Termin udostępnienia organowi nadzoru","Termin udostępnienia organowi nadzoru dotyczy tylko procesów przedaplikacyjnych i oznacza termin, w którym dokument będzie gotowy do jego oceny przez organ nadzoru. W przypadku wniosków aplikacyjnych jako termin udostępnienia dokumentu organowi nadzoru przyjmuje się dzień złożenia wniosku, w tym dokumentów zawierających potwierdzenie spełnienia poszczególnych wymogów Ustawy i innych przepisów systemu Wypłacalność II."]
[null,6,"Osoba odpowiedzialna","Jednostka organizacyjna zakładu lub osoba odpowiedzialna za przygotowanie dokumentu."]
[null,7,"Liczba stron","Liczba stron poszczególnych dokumentów. W przypadku procesów przedaplikacyjnych, jeśli status dokumentu jest inny niż 4 (dokument ukończony i podpisany), liczba stron powinna zostać oszacowana."]
[null,8,"Zakres stosowania (np. PL; Grupa; Zakłady spoza EOG) ","Wykaz podmiotów, odnośnie do których dany dokument ma zastosowanie. W przypadku krajów członkowskich EOG należy używać następujących kodów krajów: Austria – AT, Belgia – BE, Bułgaria – BG, Chorwacja – CR, Cypr – CY, Czechy – CZ, Dania – DK, Estonia – EE, Finlandia – FI, Francja – FR, Grecja – GR, Hiszpania – ES, Holandia – NL, Islandia – IS, Irlandia – IE, Liechtenstein – LI, Litwa – LT, Luxemburg – LU, Łotwa – LV, Malta – MT, Niemcy – DE,  Norwegia – NO, Polska – PL, Portugalia – PT, Rumunia – RO, Słowacja – SK, Słowenia – SI, Szwecja – SE, Węgry – HU, Włochy – IT, Wielka Brytania – GB, przy czym jeśli wnioskiem o stosowanie modelu objęty jest więcej niż jeden podmiot z danego kraju, oprócz kodu kraju należy wskazać nazwy zakładów, których dokument dotyczy. W przypadku gdy dokument ma zastosowanie wobec zakładów z krajów innych niż kraje EOG, należy użyć oznaczenia „Zakłady spoza EOG”, a jeśli dokument dotyczy wyznaczania kapitałowego wymogu wypłacalności grupy, należy użyć oznaczenia „Grupa”."]
[null,9,"Uwagi dodatkowe ","Dodatkowe uwagi lub komentarze wnioskodawcy odnośnie do poszczególnych dokumentów. Jeśli wnioskodawca nie zgłasza dodatkowych uwag lub komentarzy, pole może pozostać puste."]
[]
[]
[null,"Arkusz S.A.T.:"]
[]
[null,null,"W arkuszu S.A.T. należy przedstawić uzasadnienie, że model wewnętrzny spełnia poszczególne wymogi Ustawy i przepisów systemu Wypłacalność II. Uzasadnienie powinno zawierać odwołania do odpowiednich fragmentów dokumentów, potwierdzających spełnienie wymogów  Ustawy i przepisów systemu Wypłacalność II. W tym celu należy wykorzystać niepowtarzalne kody referencyjne poszczególnych dokumentów oraz szczegółowo określić umiejscowienie takiego potwierdzenia w dokumencie, poprzez wskazanie konkretnych numerów rozdziałów, podrozdziałów lub stron. Jeśli uzasadnienie jest przedstawiane odnośnie do wymogu Ustawy, który nie jest wprost powiązany z przepisami rozporządzenia delegowanego 2015/35, jeśli nie wskazano w tym celu odrębnego wiersza, uzasadnienie należy przedstawić we właściwym wierszu oznaczonym ciemniejszym kolorem (tak jak np. wiersz 2 i wiersz 6). W celu informacyjnym, w arkuszu S.A.T. wskazano także odwołania do poszczególnych wytycznych EIOPA w sprawie stosowania modeli wewnętrznych (EIOPA-BoS-14/180 PL), jednak nie oczekuje się od zakładów, żeby dokonywały własnej oceny zgodności z wytycznymi EIOPA w arkuszu S.A.T."]
[null,null,"W arkuszu S.A.T. należy wypełnić wszystkie pozycje udostępnione do wypełnienia w zależności od rodzaju wniosku (Wniosek aplikacyjny, Proces przedaplikacyjny) i przedstawić uzasadnienie potwierdzające spełnienie każdego wymogu, wskazując:"]
[null,"1.","Własną ocenę spełnienia wymogu ","Niniejsza kolumna jest stosowana na potrzeby procesu przedaplikacyjnego. Należy wybrać z listy stopień spełnienia wymogu, wskazując czy dany wymóg jest spełniony w pełni (Pełne spełnienie wymogu), częściowo (Częściowe spełnienie wymogu) czy wcale (Brak spełnienia wymogu). Pełne spełnienie wymogu oznacza, że zakład spełnia wymóg, częściowe, gdy pewne elementy wymagają dalszej pracy, a zakład posiada skonkretyzowany plan ich wdrożenia, natomiast brak spełnienia wymogu, że konieczne są istotne nakłady pracy, a termin zakończenia nie został określony. W przypadku grup, w których wymogi są spełnione jedynie dla części zakładów, należy wybrać pozycję \"Częściowe spełnienie wymogu\". W takiej sytuacji, dodatkowe uzasadnienie powinno zostać przedstawione w kolumnie  „Uzasadnienie spełniania wymogu”. W przypadku wniosków aplikacyjnych przyjmuje się, że zakład deklaruje pełne spełnienie każdego spośród wymogów."]
[null,"2.","Dokumenty potwierdzające spełnienie wymogu - załączone do wniosku ","Należy podać niepowtarzalny kod referencyjny poszczególnych dokumentów, opisanych w arkuszach szczegółowych. Jeśli tylko część danego dokumentu stanowi potwierdzenie spełnienia wymogu, należy szczegółowo określić umiejscowienie takiego potwierdzenia w dokumencie, poprzez wskazanie konkretnych numerów rozdziałów, podrozdziałów lub stron."]
[null,"3.","Dokumenty potwierdzające spełnienie wymogu - niezałączone do wniosku ","Dokumenty inne niż opisane w arkuszach szczegółowych, które w ocenie zakładu stanowią dodatkowe potwierdzenie spełnienia wymogu. Przywoływane dokumenty powinny zostać udostępnione w trybie natychmiastowym na każde żądanie organu nadzoru."]
[null,"4.","Uzasadnienie spełniania wymogu","Uzasadnienie w jaki sposób zakład spełnia poszczególne wymogi, zawierające odniesienie do odpowiednich dokumentów, w których spełnienie wymogu zostało potwierdzone. Jeśli zachodzi taka potrzeba, kolumna „Uzasadnienie spełniania wymogu” powinna zostać użyta także do przedstawienia dodatkowych informacji, które zakład uznaje za istotne, a które nie zostały przedstawione w innych miejscach. W przypadku gdy w kolumnie „Własna ocena spełnienia wymogu” wybrano pozycję \"Częściowe spełnienie wymogu\", w uzasadnieniu spełnienia wymogu należy wskazać te ryzyka lub podmioty powiązane, w odniesieniu do których wymóg nie jest spełniony."]
[null,null,"W przypadku odwoływania się do więcej niż jednego dokumentu w pojedynczej komórce, niepowtarzalne kody referencyjne poszczególnych dokumentów powinny zostać rozdzielone średnikiem, żeby umożliwić wyraźną identyfikację dokumentów."]
[]
[null,"Arkusz Informacje ogólne:"]
[]
[null,null,"Mając na uwadze, że informacje zawarte w arkuszu Informacje ogólne mogą być istotne na potrzeby oceny czy model wewnętrzny spełnia wymogi Ustawy i innych przepisów systemu Wypłacalność II, organ nadzoru wymaga ich przedstawienia. Odnośnie do arkusza Informacje ogólne nie jest wymagane przedstawienie oceny zgodności z wymogami oraz uzasadnienie spełniania wymogu. Należy wskazać  jedynie:"]
[null,"1.","Dokumenty potwierdzające spełnienie wymogu - załączone do wniosku ","Należy podać niepowtarzalny kod referencyjny poszczególnych dokumentów, opisanych  w arkuszach szczegółowych. Jeśli tylko część danego dokumentu stanowi potwierdzenie spełnienia wymogu, należy szczegółowo określić umiejscowienie takiego potwierdzenia w dokumencie, poprzez wskazanie konkretnych numerów rozdziałów, podrozdziałów lub stron."]
[null,"2.","Dokumenty potwierdzające spełnienie wymogu - niezałączone do wniosku ","Dokumenty inne niż opisane w arkuszach szczegółowych, które w ocenie zakładu stanowią dodatkowe potwierdzenie spełnienia wymogu. Przywoływane dokumenty powinny zostać udostępnione w trybie natychmiastowym na każde żądanie organu nadzoru."]
[]
[]
[null,"Uwagi ogólne i rejestracja zmian"]
[]
[null,"1.","Niniejszy formularz powinien zostać przekazany organowi nadzoru razem z wnioskiem o stosowanie modelu wewnętrznego do wyznaczania kapitałowego wymogu wypłacalności. W przypadku jakichkolwiek zmian stanu faktycznego, zarówno w trakcie procesu przedaplikacyjnego, procesu aplikacyjnego, jak i po uzyskaniu decyzji o zatwierdzeniu modelu, należy dokonać aktualizacji formularza i przedstawić organowi nadzoru wraz z informacją o dokonanych aktualizacjach."]
[null,"2.","W poszczególnych arkuszach niniejszego formularza należy wypełnić komórki oznaczone kolorem szarym. Pozostałe komórki powinny pozostać puste."]
[null,"3.","Nie należy zmieniać formatu formularza i poszczególnych arkuszy. Komórki nie powinny być scalane, a jeśli jedna informacja byłaby właściwa dla kilku komórek należy ją powtórzyć lub zastosować odnośniki pomiędzy komórkami."]
[null,"4.","Wypełnienie komórek w kolumnie „Dokumenty potwierdzające spełnienie wymogu - niezałączone do wniosku” arkusza S.A.T. lub arkusza Informacje ogólne może mieć miejsce tylko wtedy, gdy takie dokumenty nie zostały wymienione w liście dokumentów określonej w arkuszu roboczym „art.2 (4) (n)” zawierającym wykaz dokumentów, które wchodzą w skład dokumentacji modelu wewnętrznego (tzn. że jeśli są zawarte w ww. wykazie, powinny być dołączone do wniosku i opisane w kolumnie „Dokumenty potwierdzające spełnienie wymogu - załączone do wniosku” arkusza S.A.T. lub arkusza Informacje ogólne), a odnośnie do każdego wymogu wskazano co najmniej jeden dokument potwierdzający spełnienie wymogu, który został załączony do wniosku."]
[null,"5.","Niniejszy formularz stanowi polską wersję dokumentu „EIOPA Common Application Package (final)”, aktualnego według stanu na dzień 10 grudnia 2015 r. i ma zastosowanie wobec tych podmiotów, dla których organem nadzorczym właściwym do złożenia wniosku o stosowanie modelu wewnętrznego do wyznaczania kapitałowego wymogu wypłacalności jest Komisja Nadzoru Finansowego. Zawartość formularza (w szczególności arkusz Instrukcja w zakresie obowiązkowości wypełniania arkusza Informacje ogólne) została dostosowana do potrzeb sprawowania nadzoru przez Komisję Nadzoru Finansowego.\n"]

{"sheet":"S.A.T.","index":3,"n_rows":197,"n_cols":12,"rows_kept":197,"cut":false,"hidden":false,"merged":[[193,5,196,5],[193,7,196,7],[115,7,121,7],[139,7,141,7],[142,7,157,7],[158,7,164,7],[186,5,190,5],[171,5,177,5],[171,7,177,7],[186,7,190,7],[123,7,137,7],[165,7,167,7],[139,5,141,5],[158,5,164,5],[179,5,181,5],[105,7,111,7],[93,7,101,7],[184,0,190,0],[185,1,190,1],[185,2,190,2],[186,3,190,3],[186,4,190,4],[165,5,167,5],[168,1,169,1],[168,2,169,2],[138,1,167,1],[138,2,167,2],[139,3,167,3],[139,4,141,4],[142,4,157,4],[142,5,157,5],[158,4,164,4],[165,4,167,4],[1,0,169,0],[122,1,137,1],[122,2,137,2],[123,3,137,3],[123,4,130,4],[123,5,130,5],[193,4,196,4],[170,0,183,0],[171,3,177,3],[182,1,183,1],[182,2,183,2],[171,4,177,4],[179,3,181,3],[179,4,181,4],[170,2,177,2],[191,0,196,0],[170,1,177,1],[178,1,181,1],[178,2,181,2],[131,4,137,4],[131,5,137,5],[105,3,111,3],[105,4,111,4],[105,5,111,5],[114,1,121,1],[114,2,121,2],[115,3,121,3],[115,4,121,4],[115,5,121,5],[102,1,113,1],[102,2,113,2],[55,7,58,7],[66,7,68,7],[16,4,24,4],[69,7,73,7],[66,3,68,3],[16,5,24,5],[16,7,24,7],[69,3,73,3],[75,3,89,3],[45,4,54,4],[45,5,54,5],[55,4,58,4],[55,5,58,5],[30,5,31,5],[32,4,39,4],[32,5,39,5],[40,4,44,4],[40,5,44,5],[30,4,31,4],[55,3,58,3],[59,3,65,3],[1,1,4,1],[7,1,28,1],[7,2,28,2],[9,4,12,4],[9,5,12,5],[13,4,14,4],[13,5,14,5],[25,4,28,4],[25,5,28,5],[1,2,4,2],[2,4,3,4],[2,5,3,5],[93,4,101,4],[2,11,4,11],[2,8,4,8],[2,9,4,9],[2,10,4,10],[75,4,89,4],[75,5,89,5],[25,7,28,7],[40,7,44,7],[93,5,101,5],[59,4,65,4],[59,5,65,5],[66,4,68,4],[66,5,68,5],[69,4,73,4],[69,5,73,5],[59,7,65,7],[9,7,12,7],[13,7,15,7],[2,6,3,6],[2,7,3,7],[30,7,39,7],[75,7,89,7],[45,7,54,7],[92,1,101,1],[92,2,101,2],[93,3,101,3],[30,3,44,3],[45,3,54,3],[29,1,91,1],[29,2,91,2],[192,1,196,1],[192,2,196,2],[193,3,196,3]]}
["ROZDZIAŁ","OBSZAR","Ustawa o działalności ubezpieczeniowej i reasekuracyjnej \nArtykuł","Ustawa o działalności ubezpieczeniowej i reasekuracyjnej \nUstęp","Rozporządzenie delegowane lub wykonawcze\nTytuł","Rozporządzenie delegowane lub wykonawcze \nArtykuł","Rozporządzenie delegowane lub wykonawcze \nParagraf","Wytyczne EIOPA w sprawie stosowania modeli wewnętrznych","Własna ocena spełnienia wymogu","Dokumenty potwierdzające spełnienie wymogu - załączone do wniosku","Dokumenty potwierdzające spełnienie wymogu - niezałączone do wniosku","Uzasadnienie spełniania wymogu"]
["Testy i standardy","Wymogi ogólne","Art. 258"]
[{"$f":"A2","v":"Testy i standardy"},{"$f":"B2","v":"Wymogi ogólne"},"Art. 258","2 i 3","Rozporządzenie wykonawcze 2015/460","art.2"]
["Testy i standardy","Wymogi ogólne","Art. 258","4 i 5"]
["Testy i standardy","Wymogi ogólne","Art. 258",null,"Rozporządzenie wykonawcze 2015/460","art.5"]
[{"$f":"A5","v":"Testy i standardy"},"Zasady wprowadzania zmian w pełnych i częściowych modelach wewnętrznych","Art. 260","1--4",null,null,null,"Wytyczna 6 – Zakres zasad wprowadzania zmian w modelu; Wytyczna 7 - Określenie zmiany głównej; Wytyczna 8 – Zgłaszanie zmian drugorzędnych oraz zbiegu zmian drugorzędnych stanowiącego zmianę główną "]
[{"$f":"#REF!","v":{"$error":"#REF!"}},"Obowiązki","Art. 260",5]
[{"$f":"A7","v":{"$error":"#REF!"}},"Test użyteczności","Art. 263"]
[{"$error":"#REF!"},{"$f":"B8","v":"Test użyteczności"},{"$f":"C8","v":"Art. 263"},null,"Stosowanie modelu wewnętrznego",223]
[{"$error":"#REF!"},"Test użyteczności","Art. 263",null,"Dopasowanie do działalności",224,"(a)","Wytyczna 11 – Zachęta do poprawy jakości modelu wewnętrznego; Wytyczna 12 - Test użyteczności i zmiany modelu wewnętrznego"]
[{"$error":"#REF!"},"Test użyteczności","Art. 263",null,{"$f":"E10","v":"Dopasowanie do działalności"},224,"(b)"]
[{"$error":"#REF!"},"Test użyteczności","Art. 263",null,"Dopasowanie do działalności",224,"(c)"]
[{"$error":"#REF!"},"Test użyteczności","Art. 263",null,"Dopasowanie do działalności",224,"(d)"]
[{"$error":"#REF!"},"Test użyteczności","Art. 263",null,"Zrozumienie modelu wewnętrznego",225,"(1)","Wytyczna 13 – Zrozumienie modelu wewnętrznego; 51 – Zrozumienie modelu zewnętrznego"]
[{"$f":"A14","v":{"$error":"#REF!"}},{"$f":"B14","v":"Test użyteczności"},{"$f":"C14","v":"Art. 263"},null,{"$f":"E14","v":"Zrozumienie modelu wewnętrznego"},{"$f":"F14","v":225},"(2)"]
[null,null,null,null,"Zrozumienie modeli i danych zewnętrznych",237]
[{"$f":"A15","v":{"$error":"#REF!"}},{"$f":"B15","v":"Test użyteczności"},{"$f":"C15","v":"Art. 263"},null,"Wsparcie procesu decyzyjnego i integracja z zarządzaniem ryzykiem",226,"(a)","Wytyczna 14 – Wsparcie w podejmowaniu decyzji"]
[{"$error":"#REF!"},"Test użyteczności","Art. 263",null,null,null,"(b)"]
[{"$error":"#REF!"},"Test użyteczności","Art. 263",null,null,null,"(c )"]
[{"$error":"#REF!"},"Test użyteczności","Art. 263",null,null,null,"(d)"]
[{"$error":"#REF!"},"Test użyteczności","Art. 263",null,null,null,"(e )"]
[{"$error":"#REF!"},"Test użyteczności","Art. 263",null,null,null,"(f)"]
[null,null,null,null,null,null,"(g)"]
[{"$f":"A22","v":{"$error":"#REF!"}},{"$f":"B22","v":"Test użyteczności"},{"$f":"C22","v":"Art. 263"},null,null,null,"(h)"]
[{"$error":"#REF!"},"Test użyteczności","Art. 263",null,null,null,"(i)"]
[{"$error":"#REF!"},"Test użyteczności","Art. 263",null,"Uproszczone obliczenia",227,1]
[{"$error":"#REF!"},"Test użyteczności","Art. 263",null,{"$f":"E26","v":"Uproszczone obliczenia"},227,2]
[{"$error":"#REF!"},"Test użyteczności","Art. 263",null,"Uproszczone obliczenia",227,3]
[{"$error":"#REF!"},"Test użyteczności","Art. 263",null,"Uproszczone obliczenia",227,4]
[{"$error":"#REF!"},"Standardy statystyczne","Art. 264",null,null,null,null,"Wytyczna 21 – Sprawdzanie spójności; Wytyczna 22 – Aspekty spójności; Wytyczna 23 - Ocena spójności"]
[{"$f":"A30","v":{"$error":"#REF!"}},null,null,2,"Prognoza rozkładu prawdopodobieństwa",228,1,"Wytyczna 24 - Wiedza na temat profilu ryzyka; Wytyczna 25 - Kompleksowość prognozy rozkładu prawdopodobieństwa; Wytyczna 26 – Ocena kompleksowości prognozy rozkładu prawdopodobieństwa; Wytyczna 27 – Stopień kompleksowości prognozy rozkładu prawdopodobieństwa "]
[{"$error":"#REF!"},null,null,null,{"$f":"E31","v":"Prognoza rozkładu prawdopodobieństwa"},228,2]
[{"$f":"A32","v":{"$error":"#REF!"}},null,null,null,"Odpowiednie, mające zastosowanie i istotne metody aktuarialne",229,"(a)"]
[{"$error":"#REF!"},null,null,null,{"$f":"E33","v":"Odpowiednie, mające zastosowanie i istotne metody aktuarialne"},229,"(b)"]
[{"$error":"#REF!"},null,null,null,"Odpowiednie, mające zastosowanie i istotne metody aktuarialne",229,"(c )"]
[{"$error":"#REF!"},null,null,null,"Odpowiednie, mające zastosowanie i istotne metody aktuarialne",229,"(d)"]
[{"$error":"#REF!"},null,null,null,"Odpowiednie, mające zastosowanie i istotne metody aktuarialne",229,"(e )"]
[{"$error":"#REF!"},null,null,null,"Odpowiednie, mające zastosowanie i istotne metody aktuarialne",229,"(f)"]
[{"$error":"#REF!"},null,null,null,"Odpowiednie, mające zastosowanie i istotne metody aktuarialne",229,"(g)"]
[{"$f":"#REF!","v":{"$error":"#REF!"}},null,null,null,{"$f":"#REF!","v":{"$error":"#REF!"}},{"$f":"#REF!","v":{"$error":"#REF!"}},"(h)"]
[{"$error":"#REF!"},null,null,null,"Informacje i założenia wykorzystywane do wyznaczania prognozy rozkładu prawdopodobieństwa",230,1,"Wytyczna 16 – Istotność przyjmowanych założeń; Wytyczna 17 – Zarządzanie procesem przyjmowania założeń; Wytyczna 18 – Komunikacja i niepewność w ramach przyjmowania założeń; Wytyczna 19 - Dokumentacja procesu przyjmowania założeń; Wytyczna 20 - Walidacja procesu przyjmowania założeń"]
[{"$error":"#REF!"},null,null,null,{"$f":"E41","v":"Informacje i założenia wykorzystywane do wyznaczania prognozy rozkładu prawdopodobieństwa"},230,2]
[{"$error":"#REF!"},null,null,null,"Informacje i założenia wykorzystywane do wyznaczania prognozy rozkładu prawdopodobieństwa",230,"2 (a)"]
[{"$error":"#REF!"},null,null,null,"Informacje i założenia wykorzystywane do wyznaczania prognozy rozkładu prawdopodobieństwa",230,"2 (b)"]
[{"$error":"#REF!"},null,null,null,"Informacje i założenia wykorzystywane do wyznaczania prognozy rozkładu prawdopodobieństwa",230,"2 (c)"]
[{"$error":"#REF!"},null,null,3,"Dane stosowane w modelu wewnętrznym",231,"1 (a)"]
[{"$error":"#REF!"},null,null,null,{"$f":"E46","v":"Dane stosowane w modelu wewnętrznym"},{"$f":"F46","v":231},"1 (b)"]
[{"$error":"#REF!"},null,null,null,"Dane stosowane w modelu wewnętrznym",231,"1 (c)"]
[{"$error":"#REF!"},null,null,null,"Dane stosowane w modelu wewnętrznym",231,"2 (a)"]
[{"$error":"#REF!"},null,null,null,"Dane stosowane w modelu wewnętrznym",231,"2 (b)"]
[{"$error":"#REF!"},null,null,null,"Dane stosowane w modelu wewnętrznym",231,"3 (a)"]
[{"$error":"#REF!"},null,null,null,"Dane stosowane w modelu wewnętrznym",231,"3 (b)"]
[{"$error":"#REF!"},null,null,null,"Dane stosowane w modelu wewnętrznym",231,"3 (c)"]
[{"$error":"#REF!"},null,null,null,"Dane stosowane w modelu wewnętrznym",231,"3 (d)"]
[{"$f":"#REF!","v":{"$error":"#REF!"}},null,null,null,{"$f":"#REF!","v":{"$error":"#REF!"}},{"$f":"#REF!","v":{"$error":"#REF!"}},"3 (e)"]
[{"$error":"#REF!"},null,null,4,"Zdolność określania wagi ryzyka",232,1]
[{"$error":"#REF!"},null,null,null,{"$f":"E56","v":"Zdolność określania wagi ryzyka"},232,2]
[{"$f":"A57","v":{"$error":"#REF!"}},null,null,null,"Zdolność określania wagi ryzyka",232,3]
[{"$error":"#REF!"},null,null,null,"Zdolność określania wagi ryzyka",232,4]
[{"$error":"#REF!"},null,null,5,"Pokrycie wszystkich istotnych ryzyk",233,1]
[{"$error":"#REF!"},null,null,null,{"$f":"E60","v":"Pokrycie wszystkich istotnych ryzyk"},233,"2(a)"]
[{"$error":"#REF!"},null,null,null,"Pokrycie wszystkich istotnych ryzyk",233,"2(b)"]
[{"$error":"#REF!"},null,null,null,"Pokrycie wszystkich istotnych ryzyk",233,"2(c)"]
[{"$error":"#REF!"},null,null,null,"Pokrycie wszystkich istotnych ryzyk",233,"3(a)"]
[{"$error":"#REF!"},null,null,null,"Pokrycie wszystkich istotnych ryzyk",233,"3(b)"]
[{"$error":"#REF!"},null,null,null,"Pokrycie wszystkich istotnych ryzyk",233,"3(c)"]
[{"$error":"#REF!"},null,null,6,"Efekty dywersyfikacji",234,"(a)"]
[{"$error":"#REF!"},null,null,null,{"$f":"E67","v":"Efekty dywersyfikacji"},234,"(b)"]
[{"$f":"#REF!","v":{"$error":"#REF!"}},null,null,null,{"$f":"#REF!","v":{"$error":"#REF!"}},{"$f":"#REF!","v":{"$error":"#REF!"}},"(c )"]
[{"$error":"#REF!"},null,null,7,"Techniki ograniczania ryzyka",235,"1 (a)"]
[{"$error":"#REF!"},null,null,null,{"$f":"E70","v":"Techniki ograniczania ryzyka"},235,"1( b)"]
[{"$error":"#REF!"},null,null,null,"Techniki ograniczania ryzyka",235,"1 (c)"]
[{"$f":"#REF!","v":{"$error":"#REF!"}},null,null,null,{"$f":"#REF!","v":{"$error":"#REF!"}},{"$f":"#REF!","v":{"$error":"#REF!"}},2]
[{"$error":"#REF!"},null,null,null,{"$error":"#REF!"},{"$error":"#REF!"},3]
[null,null,null,8]
[{"$f":"A74","v":{"$error":"#REF!"}},null,null,9,"Przyszłe działania zarządu",236,"1 (a)","Wytyczna 30 - Działania zarządu w przypadku stosowania horyzontu dłuższego niż jeden rok"]
[{"$error":"#REF!"},null,null,null,{"$f":"E76","v":"Przyszłe działania zarządu"},{"$f":"F76","v":236},"1 (b)"]
[{"$error":"#REF!"},null,null,null,"Przyszłe działania zarządu",236,"1 (c)"]
[{"$error":"#REF!"},null,null,null,"Przyszłe działania zarządu",236,"1 (d)"]
[{"$error":"#REF!"},null,null,null,"Przyszłe działania zarządu",236,"1 (e)"]
[null,null,null,null,null,null,"2(a)"]
[null,null,null,null,null,null,"2(b)"]
[{"$f":"#REF!","v":{"$error":"#REF!"}},null,null,null,{"$f":"#REF!","v":{"$error":"#REF!"}},{"$f":"#REF!","v":{"$error":"#REF!"}},"3(a)"]
[{"$error":"#REF!"},null,null,null,{"$error":"#REF!"},{"$error":"#REF!"},"3(b)"]
[{"$error":"#REF!"},null,null,null,{"$error":"#REF!"},{"$error":"#REF!"},"3(c)"]
[{"$f":"A85","v":{"$error":"#REF!"}},null,null,null,{"$error":"#REF!"},{"$error":"#REF!"},"3(d)"]
[{"$error":"#REF!"},null,null,null,{"$error":"#REF!"},{"$error":"#REF!"},"3(e)"]
[{"$error":"#REF!"},null,null,null,{"$error":"#REF!"},{"$error":"#REF!"},"3(f)"]
[{"$error":"#REF!"},null,null,null,{"$error":"#REF!"},{"$error":"#REF!"},"3(g)"]
[{"$error":"#REF!"},null,null,null,{"$error":"#REF!"},{"$error":"#REF!"},4]
[null,null,null,10]
[null,null,null,11]
[{"$f":"A90","v":{"$error":"#REF!"}},"Standardy kalibracji","Art. 265"]
[{"$f":"A93","v":{"$error":"#REF!"}},{"$f":"B93","v":"Standardy kalibracji"},{"$f":"C93","v":"Art. 265"},null,"Standardy kalibracji ",238,1,"Wytyczna 28 - Wiedza o przybliżeniach w warunkach nadzwyczajnej straty; Wytyczna 29 – Użycie innej zmiennej bazowej;   Wytyczna 30 - Działania zarządu w przypadku stosowania horyzontu dłuższego niż jeden rok"]
[{"$error":"#REF!"},{"$f":"B94","v":"Standardy kalibracji"},{"$f":"C94","v":"Art. 265"},null,{"$f":"E94","v":"Standardy kalibracji "},{"$f":"F94","v":238},2]
[{"$error":"#REF!"},"Standardy kalibracji","Art. 265",null,"Standardy kalibracji ",238,"2(a)"]
[{"$error":"#REF!"},"Standardy kalibracji","Art. 265",null,"Standardy kalibracji ",238,"2(b)"]
[{"$error":"#REF!"},"Standardy kalibracji","Art. 265",null,"Standardy kalibracji ",238,"2(c)"]
[{"$error":"#REF!"},"Standardy kalibracji","Art. 265",null,"Standardy kalibracji ",238,"2(d)"]
[{"$error":"#REF!"},"Standardy kalibracji","Art. 265",null,"Standardy kalibracji ",238,"2(e )"]
[{"$f":"#REF!","v":{"$error":"#REF!"}},{"$f":"#REF!","v":{"$error":"#REF!"}},{"$f":"#REF!","v":{"$error":"#REF!"}},null,{"$f":"#REF!","v":{"$error":"#REF!"}},{"$f":"#REF!","v":{"$error":"#REF!"}},3]
[{"$error":"#REF!"},{"$error":"#REF!"},{"$error":"#REF!"},null,{"$error":"#REF!"},{"$error":"#REF!"},4]
[{"$error":"#REF!"},"Integracja częsciowych modeli wewnętrznych","Art. 259"]
[null,null,null,"1 (1)"]
[null,null,null,"1(2)"]
[{"$f":"A103","v":{"$error":"#REF!"}},null,null,"1 (3)","Integracja częściowego modelu wewnętrznego z formułą standardową",239,1]
[{"$error":"#REF!"},null,null,null,{"$f":"E106","v":"Integracja częściowego modelu wewnętrznego z formułą standardową"},239,2]
[{"$error":"#REF!"},null,null,null,"Integracja częściowego modelu wewnętrznego z formułą standardową",239,3]
[{"$error":"#REF!"},null,null,null,"Integracja częściowego modelu wewnętrznego z formułą standardową",239,4]
[{"$error":"#REF!"},null,null,null,"Integracja częściowego modelu wewnętrznego z formułą standardową",239,"5(a)"]
[{"$error":"#REF!"},null,null,null,"Integracja częściowego modelu wewnętrznego z formułą standardową",239,"5(b)"]
[{"$error":"#REF!"},null,null,null,"Integracja częściowego modelu wewnętrznego z formułą standardową",239,"5(c)"]
[null,null,null,2]
[null,null,null,3]
[{"$f":"A112","v":{"$error":"#REF!"}},"Przypisanie zysków i strat","Art. 266"]
[{"$error":"#REF!"},{"$f":"B115","v":"Przypisanie zysków i strat"},"Art. 266",null,"Przypisanie zysków i strat",240,"1(a)","Wytyczna 31 – Definicja zysków i strat"]
[{"$error":"#REF!"},"Przypisanie zysków i strat","Art. 266",null,{"$f":"E116","v":"Przypisanie zysków i strat"},240,"1(b)"]
[{"$error":"#REF!"},"Przypisanie zysków i strat","Art. 266",null,"Przypisanie zysków i strat",240,"1(c)"]
[{"$error":"#REF!"},"Przypisanie zysków i strat","Art. 266",null,"Przypisanie zysków i strat",240,"1(d)"]
[{"$error":"#REF!"},"Przypisanie zysków i strat","Art. 266",null,"Przypisanie zysków i strat",240,2]
[{"$f":"A120","v":{"$error":"#REF!"}},"Przypisanie zysków i strat","Art. 266",null,"Przypisanie zysków i strat",240,3]
[{"$error":"#REF!"},"Przypisanie zysków i strat","Art. 266",null,"Przypisanie zysków i strat",240,4]
[{"$error":"#REF!"},"Standardy walidacji","Art. 267"]
[{"$error":"#REF!"},{"$f":"B123","v":"Standardy walidacji"},{"$f":"C123","v":"Art. 267"},null,"Proces walidacji modelu",241,1,"Wytyczna 20 - Walidacja procesu przyjmowania założeń; Wytyczna 32 – Zasady walidacji i raport z walidacji; Wytyczna 33 – Zakres i cel procesu walidacji; Wytyczna 34 – Istotność walidacji; Wytyczna 35 – Jakość procesu walidacji; Wytyczna 36 – Zarządzanie procesem walidacji; Wytyczna 37 – Role w procesie walidacji; Wytyczna 38 – Niezależność procesu walidacji; Wytyczna 40 – Stosowanie narzędzi walidacji; Wytyczna 41 – Testy warunków skrajnych i analiza scenariuszowa; Wytyczna 42 – Zestawy danych poddawanych walidacji "]
[{"$error":"#REF!"},"Standardy walidacji","Art. 267",null,{"$f":"E124","v":"Proces walidacji modelu"},{"$f":"F124","v":241},2]
[{"$error":"#REF!"},"Standardy walidacji","Art. 267",null,"Proces walidacji modelu",241,"3(a)"]
[{"$error":"#REF!"},"Standardy walidacji","Art. 267",null,"Proces walidacji modelu",241,"3(b)"]
[{"$error":"#REF!"},"Standardy walidacji","Art. 267",null,"Proces walidacji modelu",241,"3(c)"]
[{"$error":"#REF!"},"Standardy walidacji","Art. 267",null,"Proces walidacji modelu",241,"3(d)"]
[{"$f":"#REF!","v":{"$error":"#REF!"}},{"$f":"#REF!","v":{"$error":"#REF!"}},{"$f":"#REF!","v":{"$error":"#REF!"}},null,{"$f":"#REF!","v":{"$error":"#REF!"}},{"$f":"#REF!","v":{"$error":"#REF!"}},"4(a)"]
[{"$error":"#REF!"},{"$error":"#REF!"},{"$error":"#REF!"},null,{"$error":"#REF!"},{"$error":"#REF!"},"4(b)"]
[{"$error":"#REF!"},{"$error":"#REF!"},{"$error":"#REF!"},null,"Narzędzia walidacji",242,1]
[{"$error":"#REF!"},{"$error":"#REF!"},{"$error":"#REF!"},null,{"$f":"E132","v":"Narzędzia walidacji"},242,2]
[{"$error":"#REF!"},{"$error":"#REF!"},{"$error":"#REF!"},null,"Narzędzia walidacji",242,"3(a)"]
[{"$error":"#REF!"},{"$error":"#REF!"},{"$error":"#REF!"},null,"Narzędzia walidacji",242,"3(b)"]
[{"$error":"#REF!"},{"$error":"#REF!"},{"$error":"#REF!"},null,"Narzędzia walidacji",242,4]
[{"$error":"#REF!"},{"$error":"#REF!"},{"$error":"#REF!"},null,"Narzędzia walidacji",242,5]
[{"$f":"#REF!","v":{"$error":"#REF!"}},{"$f":"#REF!","v":{"$error":"#REF!"}},{"$f":"#REF!","v":{"$error":"#REF!"}},null,{"$f":"#REF!","v":{"$error":"#REF!"}},{"$f":"#REF!","v":{"$error":"#REF!"}},6]
[{"$error":"#REF!"},"Standardy dokumentacji","Art. 268"]
[{"$error":"#REF!"},{"$f":"B139","v":"Standardy dokumentacji"},{"$f":"C139","v":"Art. 268"},null,"Przepisy ogólne",243,1,"Wytyczna 46 – Poprawność dokumentacji z punktu widzenia adresatów; Wytyczna 47 - Podręcznik użytkownika i opisy procesów; Wytyczna 48 – Dokumentacja wyników modelu; \nWytyczna 49 – Dokumentacja dotycząca oprogramowania i platform modelowania; Wytyczna 19 - Dokumentacja procesu przyjmowania założeń "]
[{"$error":"#REF!"},"Standardy dokumentacji","Art. 268",null,{"$f":"E140","v":"Przepisy ogólne"},243,2]
[{"$error":"#REF!"},"Standardy dokumentacji","Art. 268",null,"Przepisy ogólne",243,3]
[{"$error":"#REF!"},"Standardy dokumentacji","Art. 268",null,"Minimalna zawartość dokumentacji",244,"(a)","\nWytyczna 43 – Procedury kontroli dokumentacji; Wytyczna 44 - Dokumentacja metodyki"]
[{"$error":"#REF!"},"Standardy dokumentacji","Art. 268",null,{"$f":"E143","v":"Minimalna zawartość dokumentacji"},{"$f":"F143","v":244},"(b)"]
[{"$error":"#REF!"},"Standardy dokumentacji","Art. 268",null,"Minimalna zawartość dokumentacji",244,"(c)"]
[{"$error":"#REF!"},"Standardy dokumentacji","Art. 268",null,"Minimalna zawartość dokumentacji",244,"(d)"]
[{"$error":"#REF!"},"Standardy dokumentacji","Art. 268",null,"Minimalna zawartość dokumentacji",244,"(e)"]
[{"$error":"#REF!"},"Standardy dokumentacji","Art. 268",null,"Minimalna zawartość dokumentacji",244,"(f)"]
[{"$f":"A148","v":{"$error":"#REF!"}},"Standardy dokumentacji","Art. 268",null,"Minimalna zawartość dokumentacji",244,"(g)"]
[{"$error":"#REF!"},"Standardy dokumentacji","Art. 268",null,"Minimalna zawartość dokumentacji",244,"(h)"]
[{"$error":"#REF!"},"Standardy dokumentacji","Art. 268",null,"Minimalna zawartość dokumentacji",244,"(i)"]
[{"$error":"#REF!"},"Standardy dokumentacji","Art. 268",null,"Minimalna zawartość dokumentacji",244,"(j)"]
[{"$error":"#REF!"},"Standardy dokumentacji","Art. 268",null,"Minimalna zawartość dokumentacji",244,"(k)"]
[{"$error":"#REF!"},"Standardy dokumentacji","Art. 268",null,"Minimalna zawartość dokumentacji",244,"(l)"]
[{"$error":"#REF!"},"Standardy dokumentacji","Art. 268",null,"Minimalna zawartość dokumentacji",244,"(m)"]
[{"$error":"#REF!"},"Standardy dokumentacji","Art. 268",null,"Minimalna zawartość dokumentacji",244,"(n)"]
[{"$f":"#REF!","v":{"$error":"#REF!"}},{"$f":"#REF!","v":{"$error":"#REF!"}},{"$f":"#REF!","v":{"$error":"#REF!"}},null,{"$f":"#REF!","v":{"$error":"#REF!"}},{"$f":"#REF!","v":{"$error":"#REF!"}},"(o)"]
[{"$error":"#REF!"},{"$error":"#REF!"},{"$error":"#REF!"},null,{"$error":"#REF!"},{"$error":"#REF!"},"(p)"]
[{"$error":"#REF!"},{"$error":"#REF!"},{"$error":"#REF!"},null,"Okoliczności, w których model wewnętrzny nie działa skutecznie",245,"(a)","Wytyczna 45 – Okoliczności, w których model wewnętrzny nie funkcjonuje w sposób efektywny"]
[{"$error":"#REF!"},{"$error":"#REF!"},{"$error":"#REF!"},null,{"$f":"E159","v":"Okoliczności, w których model wewnętrzny nie działa skutecznie"},245,"(b)"]
[{"$error":"#REF!"},{"$error":"#REF!"},{"$error":"#REF!"},null,"Okoliczności, w których model wewnętrzny nie działa skutecznie",245,"(c)"]
[{"$error":"#REF!"},{"$error":"#REF!"},{"$error":"#REF!"},null,"Okoliczności, w których model wewnętrzny nie działa skutecznie",245,"(d)"]
[{"$error":"#REF!"},{"$error":"#REF!"},{"$error":"#REF!"},null,"Okoliczności, w których model wewnętrzny nie działa skutecznie",245,"(e)"]
[{"$error":"#REF!"},{"$error":"#REF!"},{"$error":"#REF!"},null,"Okoliczności, w których model wewnętrzny nie działa skutecznie",245,"(f)"]
[{"$error":"#REF!"},{"$error":"#REF!"},{"$error":"#REF!"},null,"Okoliczności, w których model wewnętrzny nie działa skutecznie",245,"(g)"]
[{"$error":"#REF!"},{"$error":"#REF!"},{"$error":"#REF!"},null,"Zmiany w modelu wewnętrznym",246,"(a)","Wytyczna 6 – Zakres zasad wprowadzania zmian w modelu; Wytyczna 7 - Określenie zmiany głównej; Wytyczna 8 – Zgłaszanie zmian drugorzędnych oraz zbiegu zmian drugorzędnych stanowiącego zmianę główną "]
[{"$error":"#REF!"},{"$error":"#REF!"},{"$error":"#REF!"},null,{"$f":"E166","v":"Zmiany w modelu wewnętrznym"},246,"(b)"]
[{"$error":"#REF!"},{"$error":"#REF!"},{"$error":"#REF!"},null,"Zmiany w modelu wewnętrznym",246,"(c)"]
[{"$error":"#REF!"},"Dane i modele zewnętrzne","Art. 269"]
[{"$f":"#REF!","v":{"$error":"#REF!"}},{"$f":"#REF!","v":{"$error":"#REF!"}},{"$f":"#REF!","v":{"$error":"#REF!"}},null,"Modele i dane zewnętrzne",247,null,"Wytyczna 50 – Dane zewnętrzne; Wytyczna 51 – Zrozumienie modelu zewnętrznego; Wytyczna 52 – Weryfikacja wyboru modelu zewnętrznego i danych zewnętrznych; Wytyczna 53 – Zintegrowanie modeli zewnętrznych z konstrukcją modelu wewnętrznego; Wytyczna 54 – Walidacja w kontekście modeli zewnętrznych i danych zewnętrznych; Wytyczna 55 - Dokumentacja w kontekście modeli zewnętrznych i danych zewnętrznych; Wytyczna 56 - Odpowiedzialność zakładu w kontekście modeli zewnętrznych i danych zewnętrznych; Wytyczna 57 – Rola usługodawców w przypadku stosowania modeli zewnętrznych lub danych zewnętrznych  "]
["Wymogi ogólne","Zarządzanie ryzykiem","Art. 56"]
[{"$f":"A171","v":"Wymogi ogólne"},null,null,null,"System zarządzania ryzykiem",259,"1(a)"]
["Wymogi ogólne",null,null,{"$f":"D172","v":0},"System zarządzania ryzykiem",259,"1(b)"]
["Wymogi ogólne",null,null,0,"System zarządzania ryzykiem",259,"1(c)"]
["Wymogi ogólne",null,null,0,"System zarządzania ryzykiem",259,"1(d)"]
["Wymogi ogólne",null,null,0,"System zarządzania ryzykiem",259,2]
["Wymogi ogólne",null,null,0,"System zarządzania ryzykiem",259,3]
["Wymogi ogólne",null,null,0,"System zarządzania ryzykiem",259,4]
[null,null,"Art. 62"]
[null,null,null,null,"Funkcja zarządzania ryzykiem",269,"2(a)"]
[null,null,null,null,null,null,"2(b)"]
[null,null,null,null,null,null,"2(c)"]
[{"$f":"#REF!","v":{"$error":"#REF!"}},"Kontrola wewnętrzna","Art. 64"]
[{"$error":"#REF!"},{"$f":"B183","v":"Kontrola wewnętrzna"},"Art. 64",null,"System kontroli wewnętrznej",266]
["Dodatkowe wymogi dla grup (art. 391)","Zasady wprowadzania zmian w pełnych i częściowych modelach wewnętrznych","Art. 260","1--4",null,null,null,"Wytyczna 9 – Zasady wprowadzania zmian w modelach wewnętrznych grup zgodnie z art. 231 dyrektywy Wypłacalność II; Wytyczna 10 – Rozszerzenie stosowania i rozszerzenie zakresu modeli wewnętrznych grup zgodnie z art. 231 dyrektywy Wypłacalność II"]
[{"$f":"#REF!","v":{"$error":"#REF!"}},"Test użyteczności","Art. 263"]
[{"$f":"A186","v":{"$error":"#REF!"}},"Test użyteczności","Art. 263",null,"Test użyteczności modeli wewnętrznych grupy",350,"1 (a)","Wytyczna 15 – Charakterystyka testu użyteczności w odniesieniu do modeli wewnętrznych grupy zgodnie z art. 231 dyrektywy Wypłacalność II"]
[{"$f":"A187","v":{"$error":"#REF!"}},"Test użyteczności","Art. 263",null,"Test użyteczności modeli wewnętrznych grupy",350,"1 (b)"]
[{"$error":"#REF!"},"Test użyteczności","Art. 263",null,"Test użyteczności modeli wewnętrznych grupy",350,"1 (c)"]
[{"$error":"#REF!"},"Test użyteczności","Art. 263",null,"Test użyteczności modeli wewnętrznych grupy",350,"1 (d)"]
[{"$error":"#REF!"},"Test użyteczności","Art. 263",null,"Test użyteczności modeli wewnętrznych grupy",350,2]
["Dodatkowe wymogi dla grup (art. 390)","Zasady wprowadzania zmian w pełnych i częściowych modelach wewnętrznych","Art. 260","1--4"]
[null,"Test użyteczności","Art. 263"]
[null,{"$f":"B193","v":"Test użyteczności"},"Art. 263",null,"Test użyteczności modeli wewnętrznych stosowanych do obliczania wyłącznie skonsolidowanego kapitałowego wymogu wypłacalności grupy",346,"1(a)"]
[null,"Test użyteczności","Art. 263",null,{"$f":"E194","v":"Test użyteczności modeli wewnętrznych stosowanych do obliczania wyłącznie skonsolidowanego kapitałowego wymogu wypłacalności grupy"},346,"1(b)"]
[null,"Test użyteczności","Art. 263",null,{"$f":"E195","v":"Test użyteczności modeli wewnętrznych stosowanych do obliczania wyłącznie skonsolidowanego kapitałowego wymogu wypłacalności grupy"},346,"1(c)"]
[null,"Test użyteczności","Art. 263",null,{"$f":"E196","v":"Test użyteczności modeli wewnętrznych stosowanych do obliczania wyłącznie skonsolidowanego kapitałowego wymogu wypłacalności grupy"},346,2]

{"sheet":"Informacje ogólne","index":4,"n_rows":99,"n_cols":9,"rows_kept":99,"cut":false,"hidden":false,"merged":[[43,3,47,3],[30,3,37,3],[30,4,37,4],[30,5,37,5],[43,5,47,5],[43,4,47,4],[26,3,28,3],[26,4,28,4],[26,5,28,5],[3,5,9,5],[3,3,9,3],[3,4,9,4],[12,3,16,3],[12,4,16,4],[12,5,16,5],[72,2,74,2],[70,1,71,1],[70,2,71,2],[67,2,69,2],[65,2,66,2],[51,2,52,2],[51,1,52,1],[53,1,61,1],[53,2,61,2],[54,3,55,3],[1,0,50,0],[29,1,39,1],[42,2,47,2],[29,2,37,2],[18,1,24,1],[18,2,24,2],[2,1,17,1],[25,1,28,1],[25,2,28,2],[2,2,9,2],[12,2,16,2],[40,1,49,1],[86,0,98,0],[72,1,74,1],[65,1,66,1],[67,1,69,1],[77,0,85,0],[75,0,76,0],[51,0,74,0]]}
["ROZDZIAŁ","OBSZAR","Ustawa o działalności ubezpieczeniowej i reasekuracyjnej \nArtykuł","Ustawa o działalności ubezpieczeniowej i reasekuracyjnej \nUstęp","Poziom 2\nTytuł artykułu","Poziom 2 \nArtykuł","Poziom 2 \nParagraf","Dokumenty potwierdzające spełnienie wymogu - załączone do wniosku","Dokumenty potwierdzające spełnienie wymogu - niezałączone do wniosku"]
["Wymogi ogólne","Zasady","Art. 46"]
[null,"Zarządzanie ryzykiem","Art. 57"]
[null,null,null,2,"Obszary zarządzania ryzykiem",260,"1(a)"]
[null,null,null,null,null,null,"1(b)"]
[null,null,null,null,null,null,"1(c)"]
[null,null,null,null,null,null,"1(d)"]
[null,null,null,null,null,null,"1(e)"]
[null,null,null,null,null,null,"1(f)"]
[null,null,null,null,null,null,"1(g)"]
[null,null,"Art. 58"]
[null,null,"Art. 59"]
[null,null,"Art. 60",null,"Funkcja zarządzania ryzykiem",269,"1(a)"]
[null,null,null,null,null,null,"1(b)"]
[null,null,null,null,null,null,"1(c)"]
[null,null,null,null,null,null,"1(d)"]
[null,null,null,null,null,null,"1(e)"]
[null,null,"Art. 61"]
[null,"Własna ocena ryzyka i wypłacalności (ORSA)","Art. 63"]
[null,null,null,"1(1)","Ogólne potrzeby w zakresie wypłacalności",262]
[null,null,null,"1(2)"]
[null,null,null,"1(3)"]
[null,null,null,3]
[null,null,null,5]
[null,null,null,6]
[null,"Audyt wewnętrzny","Art. 65"]
[null,null,null,null,"Funkcja audytu wewnętrznego",271,1]
[null,null,null,null,null,null,2]
[null,null,null,null,"Internal audit function","261 SG9",3]
[null,"Funkcja aktuarialna","Art. 66\n\n"]
[null,null,"Art. 48",null,"Funkcja aktuarialna",272,1]
[null,null,"Art. 48",null,"Actuarial function","262 SG10",2]
[null,null,"Art. 48",null,"Actuarial function","262 SG10",3]
[null,null,"Art. 48",null,"Actuarial function","262 SG10",4]
[null,null,"Art. 48",null,"Actuarial function","262 SG10",5]
[null,null,"Art. 48",null,"Actuarial function","262 SG10",6]
[null,null,"Art. 48",null,"Actuarial function","262 SG10",7]
[null,null,"Art. 48",null,"Actuarial function","262 SG10",8]
[null,null,"Art. 67 ust. 1"]
[null,null,"Art. 68 ust. 1"]
[null,"Outsourcing","Art. 73"]
[null,null,"Art. 74"]
[null,null,"Art. 75"]
[null,null,"Art. 49",null,"Outsourcing",274,1]
[null,null,"Art. 49",null,"Outsourcing","264 SG12",2]
[null,null,"Art. 49",null,"Outsourcing","264 SG12",3]
[null,null,"Art. 49",null,"Outsourcing","264 SG12",4]
[null,null,"Art. 49",null,"Outsourcing","264 SG12",5]
[null,null,"Art. 76"]
[null,null,"Art. 77"]
[null,"Pokryte ryzyka","Art. 249"]
["Dodatkowe wymogi dla grup","Wybór metody","Art. 380"]
[null,{"$f":"B52","v":"Wybór metody"},{"$f":"C52","v":"Art. 380"},2,"Wybór metody",328]
[null,"Uwzględnianie proporcjonalnego udziału","Art. 381"]
[null,{"$f":"B54","v":"Uwzględnianie proporcjonalnego udziału"},"Art. 381","1 i 2(1)","Metoda 1: sporządzanie danych skonsolidowanych",335]
[null,"Uwzględnianie proporcjonalnego udziału","Art. 381",{"$f":"D55","v":"1 i 2(1)"},"Metoda 1: obliczanie skonsolidowanego kapitałowego wymogu wypłacalności grupy",336]
[null,"Uwzględnianie proporcjonalnego udziału","Art. 381","1 i 2(2)"]
[null,null,null,3]
[null,null,null,4]
[null,{"$f":"B57","v":"Uwzględnianie proporcjonalnego udziału"},{"$f":"C57","v":"Art. 381"},"5(1)"]
[null,"Uwzględnianie proporcjonalnego udziału","Art. 381","5(2)"]
[null,"Uwzględnianie proporcjonalnego udziału","Art. 381","5(3) "]
[null,"Powiązane zakłady ubezpieczeń i zakłady reasekuracji","Art. 385"]
[null,"Pośredniczące ubezpieczeniowe spółki holdingowe","Art. 386"]
[null,"Równoważność dotycząca powiązanych zakładów ubezpieczeń i zakładów reasekuracji państw trzecich","Art. 387"]
[null,"Powiązane instytucje kredytowe, przedsiębiorstwa inwestycyjne i instytucje finansowe","Art. 388"]
[null,{"$f":"B66","v":"Powiązane instytucje kredytowe, przedsiębiorstwa inwestycyjne i instytucje finansowe"},{"$f":"C66","v":"Art. 388"},null,"Traktowanie poszczególnych jednostek powiązanych",329]
[null,"Metoda odliczeń i agegacji","Art. 393"]
[null,{"$f":"B68","v":"Metoda odliczeń i agegacji"},{"$f":"C68","v":"Art. 393"},3]
[null,{"$f":"B69","v":"Metoda odliczeń i agegacji"},{"$f":"C69","v":"Art. 393"},4]
[null,"Wypłacalność grupy w przypadku ubezpieczeniowej spółki holdingowej","Art. 394"]
[null,{"$f":"B71","v":"Wypłacalność grupy w przypadku ubezpieczeniowej spółki holdingowej"},{"$f":"C71","v":"Art. 394"},1]
[null,"Nadzór nad systemem zarządzania","Art. 403"]
[null,{"$f":"B73","v":"Nadzór nad systemem zarządzania"},{"$f":"C73","v":"Art. 403"},2]
[null,{"$f":"B74","v":"Nadzór nad systemem zarządzania"},{"$f":"C74","v":"Art. 403"},"3(1)"]
["SCR","Obliczanie kapitałowego wymogu wypłacalności","Art. 249","2--8"]
[null,"Częstotliwość obliczeń","Art. 250"]
["Środki własne","Podstawowe środki własne","Art. 241"]
[null,"Uzupełniające środki własne","Art. 242"]
[null,"Zatwierdzenie uzupełniających środków własnych przez organy nadzoru","Art. 243"]
[null,"Nadwyżki środków","Art. 244"]
[null,"Cechy jakościowe i czynniki uwzględniane przy klasyfikacji środków własnych do poszczególnych kategorii","Art. 245"]
[null,"Główne kryteria klasyfikacji do poszczególnych kategorii","Art. 246","1--4"]
[null,"Klasyfikacja środków własnych do poszczegóólnych kategorii","Art. 246",5]
[null,"Klasyfikacja specyficznych dla ubezpieczycieli pozycji środków własnych","Art. 247"]
[null,"Dopuszczalność i limity dla kategorii 1, 2, 3","Art. 248"]
["Zasady dotyczące rezerw techniczno-ubezpieczeniowych","Ustalanie wartości rezerw techniczno- ubezpieczeniowych","Art. 225"]
[null,"Ekstrapolacja odpowiedniej struktury terminowej stopy procentowej wolnej od ryzyka","Art. 226"]
[null,"Korekta dopasowująca do odpowiedniej struktury terminowej stopy procentowej wolnej od ryzyka","Art. 227"]
[null,"Obliczanie korekty dopasowującej","Art. 228"]
[null,"Korekta z tytułu zmienności do odpowiedniej struktury terminowej stopy procentowej wolnej od ryzyka","Art. 229"]
[null,"Informacje techniczne opracowywane przez Europejski Urząd Nadzoru Ubezpieczeń i Pracowniczych Programów Emerytalnych (EIOPA)","Art. 230"]
[null,"Inne elementy uwzględniane przy ustalaniu wartości rezerw techniczno- ubezpieczeniowych","Art. 231"]
[null,"Segmentacja","Art. 232"]
[null,"Kwoty należne z umów reasekuracji i od spółek celowych (podmiotów specjalnego przeznaczenia)","Art. 233"]
[null,"Jakość danych i stosowanie przybliżeń, w tym indywidualnego podejścia w odniesieniu do rezerw techniczno- ubezpieczeniowych","Art. 234"]
[null,"Porównanie z danymi wynikającymi ze zgromadzonych doświadczeń","Art. 235"]
[null,"Właściwa wysokość rezerw techniczno- ubezpieczeniowych","Art. 236"]
[null,"Zwiększenie wysokości rezerw techniczno- ubezpieczeniowych","Art. 237"]

{"sheet":"art.2 (4)(a)","index":5,"n_rows":7,"n_cols":10,"rows_kept":7,"cut":false,"hidden":false,"merged":[[1,1,3,3]]}
[]
[null,"Wniosek\nRozporządzenie wykonawcze 2015/460 \nArtykuł 2 (4)(a)"]
[null,null,null,null,null,null,"List przewodni"]
[]
[]
[null,"Niepowtarzalny kod referencyjny","Data wersji dokumentu","Opis dokumentu","Status","Termin udostępnienia organowi nadzoru","Osoba odpowiedzialna","Liczba stron","Zakres stosowania \n(np. PL; Grupa; Zakłady spoza EOG)","Uwagi dodatkowe"]
[null,"LET",null,"[opis]",1,null,"[osoba odpowiedzialna]","[liczba stron]"]

{"sheet":"art.2 (4)(b)","index":6,"n_rows":7,"n_cols":10,"rows_kept":7,"cut":false,"hidden":false,"merged":[[1,1,3,3]]}
[]
[null,"Wniosek\nRozporządzenie wykonawcze 2015/460\nArtykuł 2 (4)(b)"]
[null,null,null,null,null,null,"Uwzględnione ryzyka"]
[]
[]
[null,"Niepowtarzalny kod referencyjny","Data wersji dokumentu","Opis dokumentu","Status","Termin udostępnienia organowi nadzoru","Osoba odpowiedzialna","Liczba stron","Zakres stosowania \n(np. PL; Grupa; Zakłady spoza EOG)","Uwagi dodatkowe"]
[null,"RISK",null,"[opis]",1,null,"[osoba odpowiedzialna]","[liczba stron]"]

{"sheet":"art.2 (4)(c)","index":7,"n_rows":7,"n_cols":10,"rows_kept":7,"cut":false,"hidden":false,"merged":[[1,1,3,3],[2,6,2,9]]}
[]
[null,"Wniosek\nRozporządzenie wykonawcze 2015/460\nArtykuł 2 (4)(c)"]
[null,null,null,null,null,null,"Integracja  modelu wewnętrznego z systemem zarządzania ryzykiem"]
[]
[]
[null,"Niepowtarzalny kod referencyjny","Data wersji dokumentu","Opis dokumentu","Status","Termin udostępnienia organowi nadzoru","Osoba odpowiedzialna","Liczba stron","Zakres stosowania \n(np. PL; Grupa; Zakłady spoza EOG)","Uwagi dodatkowe"]
[null,"USE",null,"[opis]",1,null,"[osoba odpowiedzialna]","[liczba stron]"]

{"sheet":"art.2 (4)(d)","index":8,"n_rows":7,"n_cols":10,"rows_kept":7,"cut":false,"hidden":false,"merged":[[1,1,3,3],[2,6,2,9]]}
[]
[null,"Wniosek\nRozporządzenie wykonawcze 2015/460\nArtykuł 2 (4)(d)"]
[null,null,null,null,null,null,"Ocena i uzasadnienie istotnych mocnych i słabych stron oraz ograniczeń modelu wewnętrznego"]
[]
[]
[null,"Niepowtarzalny kod referencyjny","Data wersji dokumentu","Opis dokumentu","Status","Termin udostępnienia organowi nadzoru","Osoba odpowiedzialna","Liczba stron","Zakres stosowania \n(np. PL; Grupa; Zakłady spoza EOG)","Uwagi dodatkowe"]
[null,"SELF","2013-01-01","[opis]",1,null,"[osoba odpowiedzialna]","[liczba stron]"]

{"sheet":"art.2 (4)(e)","index":9,"n_rows":7,"n_cols":10,"rows_kept":7,"cut":false,"hidden":false,"merged":[[1,1,3,3],[2,6,2,9]]}
[]
[null,"Wniosek\nRozporządzenie wykonawcze 2015/460\nArtykuł 2 (4)(e)"]
[null,null,null,null,null,null,"Uzasadnienie określające, dlaczego model wewnętrzny grupy nie odpowiada profilowi ryzyka zakładu"]
[]
[]
[null,"Niepowtarzalny kod referencyjny","Data wersji dokumentu","Opis dokumentu","Status","Termin udostępnienia organowi nadzoru","Osoba odpowiedzialna","Liczba stron","Zakres stosowania \n(np. PL; Grupa; Zakłady spoza EOG)","Uwagi dodatkowe"]
[null,"FIT",null,"[opis]",1,null,"[osoba odpowiedzialna]","[liczba stron]"]

{"sheet":"art.2 (4)(f)","index":10,"n_rows":7,"n_cols":10,"rows_kept":7,"cut":false,"hidden":false,"merged":[[1,1,3,3],[2,6,2,9]]}
[]
[null,"Wniosek\nRozporządzenie wykonawcze 2015/460\nArtykuł 2 (4)(f)"]
[null,null,null,null,null,null,"Specyfikacja techniczna modelu wewnętrznego"]
[]
[]
[null,"Niepowtarzalny kod referencyjny","Data wersji dokumentu","Opis dokumentu","Status","Termin udostępnienia organowi nadzoru","Osoba odpowiedzialna","Liczba stron","Zakres stosowania \n(np. PL; Grupa; Zakłady spoza EOG)","Uwagi dodatkowe"]
[null,"TECH",null,"[opis]",1,null,"[osoba odpowiedzialna]","[liczba stron]"]

{"sheet":"art.2 (4)(g)","index":11,"n_rows":7,"n_cols":10,"rows_kept":7,"cut":false,"hidden":false,"merged":[[1,1,3,3],[2,6,2,9]]}
[]
[null,"Wniosek\nRozporządzenie wykonawcze 2015/460\nArtykuł 2 (4)(g)"]
[null,null,null,null,null,null,"Adekwatność systemu kontroli wewnętrznej"]
[]
[]
[null,"Niepowtarzalny kod referencyjny","Data wersji dokumentu","Opis dokumentu","Status","Termin udostępnienia organowi nadzoru","Osoba odpowiedzialna","Liczba stron","Zakres stosowania \n(np. PL; Grupa; Zakłady spoza EOG)","Uwagi dodatkowe"]
[null,"ICS",null,"[opis]",1,null,"[osoba odpowiedzialna]","[liczba stron]"]

{"sheet":"art.2 (4)(h)","index":12,"n_rows":7,"n_cols":10,"rows_kept":7,"cut":false,"hidden":false,"merged":[[1,1,3,3],[2,6,2,9]]}
[]
[null,"Wniosek\nRozporządzenie wykonawcze 2015/460\nArtykuł 2 (4)(h)"]
[null,null,null,null,null,null,"Adekwatność zasobów, umiejętności i obiektywności personelu odpowiedzialnego za opracowanie i walidację modelu wewnętrznego"]
[]
[]
[null,"Niepowtarzalny kod referencyjny","Data wersji dokumentu","Opis dokumentu","Status","Termin udostępnienia organowi nadzoru","Osoba odpowiedzialna","Liczba stron","Zakres stosowania \n(np. PL; Grupa; Zakłady spoza EOG)","Uwagi dodatkowe"]
[null,"REC",null,"[opis]",1,null,"[osoba odpowiedzialna]","[liczba stron]"]

{"sheet":"art.2 (4)(i)","index":13,"n_rows":7,"n_cols":10,"rows_kept":7,"cut":false,"hidden":false,"merged":[[1,1,3,3],[2,6,2,9]]}
[]
[null,"Wniosek\nRozporządzenie wykonawcze 2015/460\nArtykuł 2 (4)(i)"]
[null,null,null,null,null,null,"Zasady wprowadzania zmian w modelu wewnętrznym"]
[]
[]
[null,"Niepowtarzalny kod referencyjny","Data wersji dokumentu","Opis dokumentu","Status","Termin udostępnienia organowi nadzoru","Osoba odpowiedzialna","Liczba stron","Zakres stosowania \n(np. PL; Grupa; Zakłady spoza EOG)","Uwagi dodatkowe"]
[null,"MCP",null,"[opis]",1,null,"[osoba odpowiedzialna]","[liczba stron]"]

{"sheet":"art.2 (4)(j)","index":14,"n_rows":7,"n_cols":10,"rows_kept":7,"cut":false,"hidden":false,"merged":[[1,1,3,3],[2,6,2,9]]}
[]
[null,"Wniosek\nRozporządzenie wykonawcze 2015/460\nArtykuł 2 (4)(j)"]
[null,null,null,null,null,null,"Zgodność metod stosowanych do wyznaczania prognozy rozkładu prawdopodobieństwa z metodami stosowanymi do ustalania wartości rezerw techniczno- ubezpieczeniowych"]
[]
[]
[null,"Niepowtarzalny kod referencyjny","Data wersji dokumentu","Opis dokumentu","Status","Termin udostępnienia organowi nadzoru","Osoba odpowiedzialna","Liczba stron","Zakres stosowania \n(np. PL; Grupa; Zakłady spoza EOG)","Uwagi dodatkowe"]
[null,"CONS",null,"[opis]",1,null,"[osoba odpowiedzialna]","[liczba stron]"]

{"sheet":"art.2 (4)(k)","index":15,"n_rows":7,"n_cols":10,"rows_kept":7,"cut":false,"hidden":false,"merged":[[1,1,3,3],[2,6,2,9]]}
[]
[null,"Wniosek\nRozporządzenie wykonawcze 2015/460\nArtykuł 2 (4)(k)"]
[null,null,null,null,null,null,"Wykaz danych stosowanych w modelu wewnętrznym"]
[]
[]
[null,"Niepowtarzalny kod referencyjny","Data wersji dokumentu","Opis dokumentu","Status","Termin udostępnienia organowi nadzoru","Osoba odpowiedzialna","Liczba stron","Zakres stosowania \n(np. PL; Grupa; Zakłady spoza EOG)","Uwagi dodatkowe"]
[null,"DATA",null,"[opis]",1,null,"[osoba odpowiedzialna]","[liczba stron]"]

{"sheet":"art.2 (4)(l)","index":16,"n_rows":7,"n_cols":10,"rows_kept":7,"cut":false,"hidden":false,"merged":[[1,1,3,3],[2,6,2,9]]}
[]
[null,"Wniosek\nRozporządzenie wykonawcze 2015/460\nArtykuł 2 (4)(l)"]
[null,null,null,null,null,null,"Wyniki ostatniego przypisania zysków i strat"]
[]
[]
[null,"Niepowtarzalny kod referencyjny","Data wersji dokumentu","Opis dokumentu","Status","Termin udostępnienia organowi nadzoru","Osoba odpowiedzialna","Liczba stron","Zakres stosowania \n(np. PL; Grupa; Zakłady spoza EOG)","Uwagi dodatkowe"]
[null,"PALA",null,"[opis]",1,null,"[osoba odpowiedzialna]","[liczba stron]"]

{"sheet":"art.2 (4)(m)","index":17,"n_rows":7,"n_cols":10,"rows_kept":7,"cut":false,"hidden":false,"merged":[[1,1,3,3],[2,6,2,9]]}
[]
[null,"Wniosek\nRozporządzenie wykonawcze 2015/460\nArtykuł 2(4)(m)"]
[null,null,null,null,null,null,"Niezależny proces walidacji modelu wewnętrznego oraz sprawozdanie z wyników ostatniej walidacji"]
[]
[]
[null,"Niepowtarzalny kod referencyjny","Data wersji dokumentu","Opis dokumentu","Status","Termin udostępnienia organowi nadzoru","Osoba odpowiedzialna","Liczba stron","Zakres stosowania \n(np. PL; Grupa; Zakłady spoza EOG)","Uwagi dodatkowe"]
[null,"VALI",null,"[opis]",1,null,"[osoba odpowiedzialna]","[liczba stron]"]

{"sheet":"art.2 (4)(n)","index":18,"n_rows":7,"n_cols":10,"rows_kept":7,"cut":false,"hidden":false,"merged":[[1,1,3,3],[2,6,2,9]]}
[]
[null,"Wniosek\nRozporządzenie wykonawcze 2015/460\nArtykuł 2 (4)(n)"]
[null,null,null,null,null,null,"Wykaz dokumentów, które wchodzą w skład dokumentacji modelu wewnętrznego"]
[]
[]
[null,"Niepowtarzalny kod referencyjny","Data wersji dokumentu","Opis dokumentu","Status","Termin udostępnienia organowi nadzoru","Osoba odpowiedzialna","Liczba stron","Zakres stosowania \n(np. PL; Grupa; Zakłady spoza EOG)","Uwagi dodatkowe"]
[null,"INVE",null,"[opis]",1,null,"[osoba odpowiedzialna]","[liczba stron]"]

{"sheet":"art.2 (4)(o)","index":19,"n_rows":7,"n_cols":10,"rows_kept":7,"cut":false,"hidden":false,"merged":[[1,1,3,3],[2,6,2,9]]}
[]
[null,"Wniosek\nRozporządzenie wykonawcze 2015/460\nArtykuł 2 (4)(o)"]
[null,null,null,null,null,null,"Stosowanie modeli lub danych zewnętrznych"]
[]
[]
[null,"Niepowtarzalny kod referencyjny","Data wersji dokumentu","Opis dokumentu","Status","Termin udostępnienia organowi nadzoru","Osoba odpowiedzialna","Liczba stron","Zakres stosowania \n(np. PL; Grupa; Zakłady spoza EOG)","Uwagi dodatkowe"]
[null,"EXT",null,"[opis]",1,null,"[osoba odpowiedzialna]","[liczba stron]"]

{"sheet":"art.2 (4)(p)","index":20,"n_rows":7,"n_cols":10,"rows_kept":7,"cut":false,"hidden":false,"merged":[[1,1,3,3],[2,6,2,9]]}
[]
[null,"Wniosek\nRozporządzenie wykonawcze 2015/460\nArtykuł 2 (4)(p)"]
[null,null,null,null,null,null,"Oszacowanie kapitałowego wymogu wypłacalności za pomocą modelu wewnętrznego oraz za pomocą formuły standardowej"]
[]
[]
[null,"Niepowtarzalny kod referencyjny","Data wersji dokumentu","Opis dokumentu","Status","Termin udostępnienia organowi nadzoru","Osoba odpowiedzialna","Liczba stron","Zakres stosowania \n(np. PL; Grupa; Zakłady spoza EOG)","Uwagi dodatkowe"]
[null,"EST",null,"[opis]",1,null,"[osoba odpowiedzialna]","[liczba stron]"]

{"sheet":"art.2 (4)(q)","index":21,"n_rows":7,"n_cols":10,"rows_kept":7,"cut":false,"hidden":false,"merged":[[1,1,3,3],[2,6,2,9]]}
[]
[null,"Wniosek\nRozporządzenie wykonawcze 2015/460\nArtykuł 2 (4)(q)"]
[null,null,null,null,null,null,"Główne obszary działalności"]
[]
[]
[null,"Niepowtarzalny kod referencyjny","Data wersji dokumentu","Opis dokumentu","Status","Termin udostępnienia organowi nadzoru","Osoba odpowiedzialna","Liczba stron","Zakres stosowania \n(np. PL; Grupa; Zakłady spoza EOG)","Uwagi dodatkowe"]
[null,"MBU",null,"[opis]",1,null,"[osoba odpowiedzialna]","[liczba stron]"]

{"sheet":"art.2 (4)(r)","index":22,"n_rows":7,"n_cols":10,"rows_kept":7,"cut":false,"hidden":false,"merged":[[1,1,3,3],[2,6,2,9]]}
[]
[null,"Wniosek\nRozporządzenie wykonawcze 2015/460\nArtykuł 2 (4)(r)"]
[null,null,null,null,null,null,"Integracja częściowych modeli wewnętrznych"]
[]
[]
[null,"Niepowtarzalny kod referencyjny","Data wersji dokumentu","Opis dokumentu","Status","Termin udostępnienia organowi nadzoru","Osoba odpowiedzialna","Liczba stron","Zakres stosowania \n(np. PL; Grupa; Zakłady spoza EOG)","Uwagi dodatkowe"]
[null,"PART",null,"[opis]",1,null,"[osoba odpowiedzialna]","[liczba stron]"]

{"sheet":"343 (5)(a)(i) + 347 (6)(a)","index":23,"n_rows":7,"n_cols":10,"rows_kept":7,"cut":false,"hidden":true,"merged":[[1,1,3,5],[1,6,3,9]]}
[]
[null,"Wniosek dot. modelu grupy \nRozporządzenie delegowane 2015/35\nArtykuł 343 (5) (a) (i) oraz\nArtykuł 347 (6) (a) zdanie 1",null,null,null,null,"Wykaz jednostek powiązanych, które są objęte zakresem modelu "]
[]
[]
[]
[null,"Niepowtarzalny kod referencyjny","Data wersji dokumentu","Opis dokumentu","Status","Termin udostępnienia organowi nadzoru","Osoba odpowiedzialna","Liczba stron","Zakres stosowania \n(np. PL; Grupa; Zakłady spoza EOG)","Uwagi dodatkowe"]
[null,"INCL",null,"[opis]",1,null,"[osoba odpowiedzialna]","[liczba stron]"]

{"sheet":"343 (5)(a)(ii) + 347 (6)(a)","index":24,"n_rows":7,"n_cols":10,"rows_kept":7,"cut":false,"hidden":true,"merged":[[1,1,3,5],[1,6,3,9]]}
[]
[null,"Wniosek dot. modelu grupy \nRozporządzenie delegowane 2015/35\nArtykuł 343 (5) (a) (ii) oraz\nArtykuł 347 (6) (a) zdanie 1",null,null,null,null,"Prawna i organizacyjna struktura grupy z opisem wszystkich jednostek zależnych"]
[]
[]
[]
[null,"Niepowtarzalny kod referencyjny","Data wersji dokumentu","Opis dokumentu","Status","Termin udostępnienia organowi nadzoru","Osoba odpowiedzialna","Liczba stron","Zakres stosowania \n(np. PL; Grupa; Zakłady spoza EOG)","Uwagi dodatkowe"]
[null,"STRU",null,"[opis]",1,null,"[osoba odpowiedzialna]","[liczba stron]"]

{"sheet":"343 (5)(a)(iii) + 347 (6)(a)","index":25,"n_rows":7,"n_cols":10,"rows_kept":7,"cut":false,"hidden":true,"merged":[[1,1,3,5],[1,6,3,9]]}
[]
[null,"Wniosek dot. modelu grupy \nRozporządzenie delegowane 2015/35\nArtykuł 343 (5) (a) (iii) oraz\nArtykuł 347 (6) (a) zdanie 1",null,null,null,null,"Wykaz jednostek powiązanych wyłączonych z zakresu częściowego modelu wewnętrznego wraz z opisem metod oceny ryzyka w tych wyłączonych jednostkach powiązanych"]
[]
[]
[]
[null,"Niepowtarzalny kod referencyjny","Data wersji dokumentu","Opis dokumentu","Status","Termin udostępnienia organowi nadzoru","Osoba odpowiedzialna","Liczba stron","Zakres stosowania \n(np. PL; Grupa; Zakłady spoza EOG)","Uwagi dodatkowe"]
[null,"EXCL",null,"[opis]",1,null,"[osoba odpowiedzialna]","[liczba stron]"]

{"sheet":"343 (5)(a)(iv) + 347 (6)(a)","index":26,"n_rows":7,"n_cols":10,"rows_kept":7,"cut":false,"hidden":true,"merged":[[1,1,3,5],[1,6,3,9]]}
[]
[null,"Wniosek dot. modelu grupy \nRozporządzenie delegowane 2015/35\nArtykuł 343 (5) (a) (iv) oraz\nArtykuł 347 (6) (a) zdanie 1",null,null,null,null,"Uzasadnienie powodów "]
[]
[]
[]
[null,"Niepowtarzalny kod referencyjny","Data wersji dokumentu","Opis dokumentu","Status","Termin udostępnienia organowi nadzoru","Osoba odpowiedzialna","Liczba stron","Zakres stosowania \n(np. PL; Grupa; Zakłady spoza EOG)","Uwagi dodatkowe"]
[null,"JUST",null,"[opis]",1,null,"[osoba odpowiedzialna]","[liczba stron]"]

{"sheet":"343 (5)(b)(i) + 347 (6)(a)","index":27,"n_rows":7,"n_cols":10,"rows_kept":7,"cut":false,"hidden":true,"merged":[[1,1,3,5],[1,6,3,9]]}
[]
[null,"Wniosek dot. modelu grupy \nRozporządzenie delegowane 2015/35\nArtykuł 343 (5) (b) (i) oraz\nArtykuł 347 (6) (a) zdanie 1",null,null,null,null,"Oszacowanie skonsolidowanego kapitałowego wymogu wypłacalności grupy obliczonego z wykorzystaniem modelu wewnętrznego oraz z wykorzystaniem formuły standardowej"]
[]
[]
[]
[null,"Niepowtarzalny kod referencyjny","Data wersji dokumentu","Opis dokumentu","Status","Termin udostępnienia organowi nadzoru","Osoba odpowiedzialna","Liczba stron","Zakres stosowania \n(np. PL; Grupa; Zakłady spoza EOG)","Uwagi dodatkowe"]
[null,"GSCR",null,"[opis]",1,null,"[osoba odpowiedzialna]","[liczba stron]"]

{"sheet":"343 (5)(b)(ii) + 347 (6)(a)","index":28,"n_rows":7,"n_cols":10,"rows_kept":7,"cut":false,"hidden":true,"merged":[[1,1,3,5],[1,6,3,9]]}
[]
[null,"Wniosek dot. modelu grupy \nRozporządzenie delegowane 2015/35\nArtykuł 343 (5) (b) (ii) oraz\nArtykuł 347 (6) (a) zdanie 1",null,null,null,null,"Kapitałowy wymóg wypłacalności każdej jednostki powiązanej obliczony z wykorzystaniem formuły standardowej za ostatni okres poprzedzający złożenie wniosku"]
[]
[]
[]
[null,"Niepowtarzalny kod referencyjny","Data wersji dokumentu","Opis dokumentu","Status","Termin udostępnienia organowi nadzoru","Osoba odpowiedzialna","Liczba stron","Zakres stosowania \n(np. PL; Grupa; Zakłady spoza EOG)","Uwagi dodatkowe"]
[null,"SSCR",null,"[opis]",1,null,"[osoba odpowiedzialna]","[liczba stron]"]

{"sheet":"343 (5)(b)(iii) + 347 (6)(a)","index":29,"n_rows":7,"n_cols":10,"rows_kept":7,"cut":false,"hidden":true,"merged":[[1,1,3,5],[1,6,3,9]]}
[]
[null,"Wniosek dot. modelu grupy \nRozporządzenie delegowane 2015/35\nArtykuł 343 (5) (b) (iii) oraz\nArtykuł 347 (6) (a) zdanie 1",null,null,null,null,"Regulacyjny wymóg kapitałowy obowiązujący jednostki powiązane, które są jednostkami regulowanymi innymi niż zakłady ubezpieczeń i zakłady reasekuracji (jeśli zasadne)"]
[]
[]
[]
[null,"Niepowtarzalny kod referencyjny","Data wersji dokumentu","Opis dokumentu","Status","Termin udostępnienia organowi nadzoru","Osoba odpowiedzialna","Liczba stron","Zakres stosowania \n(np. PL; Grupa; Zakłady spoza EOG)","Uwagi dodatkowe"]
[null,"RCR",null,"[opis]",1,null,"[osoba odpowiedzialna]","[liczba stron]"]

{"sheet":"343 (5)(b)(iv) + 347 (6)(a)","index":30,"n_rows":7,"n_cols":10,"rows_kept":7,"cut":false,"hidden":true,"merged":[[1,1,3,5],[1,6,3,9]]}
[]
[null,"Wniosek dot. modelu grupy \nRozporządzenie delegowane 2015/35\nArtykuł 343 (5) (b) (iv) oraz\nArtykuł 347 (6) (a) zdanie 1",null,null,null,null,"Wyjaśnienie różnicy dotyczącej kapitałowego wymogu wypłacalności"]
[]
[]
[]
[null,"Niepowtarzalny kod referencyjny","Data wersji dokumentu","Opis dokumentu","Status","Termin udostępnienia organowi nadzoru","Osoba odpowiedzialna","Liczba stron","Zakres stosowania \n(np. PL; Grupa; Zakłady spoza EOG)","Uwagi dodatkowe"]
[null,"DSCR",null,"[opis]",1,null,"[osoba odpowiedzialna]","[liczba stron]"]

{"sheet":"347 (6)(a) zd. 2","index":31,"n_rows":7,"n_cols":10,"rows_kept":7,"cut":false,"hidden":true,"merged":[[1,1,3,5],[1,6,3,9]]}
[]
[null,"Wniosek dot. modelu grupy \nRozporządzenie delegowane 2015/35\nArtykuł 347 (6) (a) zdanie 2",null,null,null,null,"Wykaz wszystkich zakładów ubezpieczeń i zakładów reasekuracji składających wniosek o zezwolenie na stosowanie modelu wewnętrznego grupy do wyznaczania indywidualnego kapitałowego wymogu wypłacalności"]
[]
[]
[]
[null,"Niepowtarzalny kod referencyjny","Data wersji dokumentu","Opis dokumentu","Status","Termin udostępnienia organowi nadzoru","Osoba odpowiedzialna","Liczba stron","Zakres stosowania \n(np. PL; Grupa; Zakłady spoza EOG)","Uwagi dodatkowe"]
[null,"USEG",null,"[opis]",1,null,"[osoba odpowiedzialna]","[liczba stron]"]

{"sheet":"347 (6)(b)","index":32,"n_rows":7,"n_cols":10,"rows_kept":7,"cut":false,"hidden":true,"merged":[[1,1,3,5],[1,6,3,9]]}
[]
[null,"Wniosek dot. modelu grupy \nRozporządzenie delegowane 2015/35\nArtykuł 347 (6) (b)",null,null,null,null,"Dokumenty inne niż złożone zgodnie z artykułem 2 rozporządzenia wykonawczego 2015/460"]
[]
[]
[]
[null,"Niepowtarzalny kod referencyjny","Data wersji dokumentu","Opis dokumentu","Status","Termin udostępnienia organowi nadzoru","Osoba odpowiedzialna","Liczba stron","Zakres stosowania \n(np. PL; Grupa; Zakłady spoza EOG)","Uwagi dodatkowe"]
[null,"NCOV",null,"[opis]",1,null,"[osoba odpowiedzialna]","[liczba stron]"]

{"sheet":"Informacje dodatkowe","index":33,"n_rows":7,"n_cols":10,"rows_kept":7,"cut":false,"hidden":false,"merged":[[1,1,3,3],[2,6,2,9]]}
[]
[]
[null,null,null,null,null,null,"Informacje dodatkowe"]
[]
[]
[null,"Niepowtarzalny kod referencyjny","Data wersji dokumentu","Opis dokumentu","Status","Termin udostępnienia organowi nadzoru","Osoba odpowiedzialna","Liczba stron","Zakres stosowania \n(np. PL; Grupa; Zakłady spoza EOG)","Uwagi dodatkowe"]
[null,"[KOD]",null,"[opis]",1,null,"[osoba odpowiedzialna]","[liczba stron]"]